[Event "26th Womens ECCC 2022"]
[Site "Mayrhofen"]
[Date "2022.10.04"]
[Round "2.3"]
[White "Cramling, Pia"]
[Black "Antolak, Julia"]
[Result "1-0"]
[ECO "A34"]
[WhiteElo "2459"]
[BlackElo "2315"]
[Annotator "TA"]
[PlyCount "111"]
[EventDate "2022.10.03"]
[EventType "team-tourn"]
[EventCountry "AUT"]
[SourceTitle "playchess.com"]
[Source "ChessBase"]
[SourceQuality "1"]
[TimeControl "40/5400+30:1800+30"]

{[%evp 9,111,0,13,13,58,51,51,48,60,48,61,56,56,56,53,52,44,52,55,60,68,72,72,74,83,77,79,72,76,60,87,79,117,119,118,81,105,109,108,101,129,126,149,149,144,112,133,125,135,135,141,129,141,136,152,139,143,135,142,125,139,133,131,135,206,204,223,226,322,314,350,356,391,400,408,404,367,398,394,395,450,444,606,589,672,666,929,904,1191,772,770,685,1553,1466,5925,5925,5916,5916,5916,5337,1527,1365,757,582]} 1. Nf3 {[%emt 0:00:11]} Nf6 {[%emt 0:00:07]} 2. c4 {[%emt 0:00:10]} c5 {[%emt 0:00:12]} 3. Nc3 {[%emt 0:00:23]} d5 {[%emt 0:00:28]} 4. cxd5 {[%emt 0:02:18]} Nxd5 {[%emt 0:00:41]} 5. Qa4+ {[%emt 0:02:43]} Nc6 {[%emt 0:05:00]} 6. Ne5 {[%emt 0:01:11] A34: Symmetrical English: 2 Nc3, lines with ...d5.} Nxc3 {[%emt 0:12:10]} (6... Qc7 $5 {[%cal Rc7e5]} 7. Nxc6 Nxc3 8. dxc3 Bd7 $11) 7. dxc3 {[%emt 0:00:40]} Qa5 {[%emt 0:16:52]} 8. Qxa5 {[%emt 0:01:49] White is slightly better.} Nxa5 {[%emt 0:00:03]} 9. e4 {[%emt 0:12:55]} a6 {[%emt 0:00:18]} 10. b4 {[%emt 0:02:01] White is more active.} cxb4 {[%emt 0:01:43]} 11. cxb4 {[%emt 0:00:07]} Nc6 {[%emt 0:00:05]} 12. Nxc6 {[%emt 0:00:12]} bxc6 {[%emt 0:00:03]} 13. Bd2 {[%emt 0:01:15] [#]} e6 $146 {[%emt 0:04:13]} ({Predecessor:} 13... e5 14. Rc1 Kd7 15. Bc4 Rb8 16. Rb1 f6 17. Ke2 Bd6 18. Rb3 Bb7 19. Rd1 Ke7 {1-0 (74) Stojanovic,M (2453)-Nyysti,S (2242) Belgrade 2002}) 14. Rc1 {[%emt 0:02:10] Against c5} Bb7 {[%emt 0:03:49]} 15. Bd3 {[%emt 0:01:25]} Be7 {[%emt 0:01:36]} 16. Ke2 {[%emt 0:01:45]} O-O {[%emt 0:03:18]} 17. Rc2 {[%emt 0:03:05]} Rfd8 {[%emt 0:03:13]} 18. Rb1 {[%emt 0:05:26]} Rd7 {[%emt 0:05:16]} 19. Rb3 {[%emt 0:10:30]} Rad8 {[%emt 0:04:28]} 20. Be3 {[%emt 0:04:52]} h6 {[%emt 0:02:18]} 21. Bb6 {[%emt 0:09:23]} Ra8 {[%emt 0:02:38]} 22. Rc4 {[%emt 0:06:16][%cal Bc2c4,Bc4c5,Bc5a5][%mdl 32]} Bd8 {[%emt 0:07:00]} 23. Bxd8 {[%emt 0:06:37]} Raxd8 {[%emt 0:00:05]} 24. Ke3 {[%emt 0:00:31]} Kf8 {[%emt 0:06:43]} 25. Rc5 {[%emt 0:02:12]} g5 {[%emt 0:02:34]} 26. Ra5 {[%emt 0:00:26]} Kg7 {[%emt 0:05:26]} 27. h3 {[%emt 0:11:08]} (27. Bxa6 Bxa6 28. Rxa6 Rd1 $14) 27... Ra8 {[%emt 0:03:59]} 28. g3 {[%emt 0:01:14]} Kf8 {[%emt 0:00:40]} 29. Be2 {[%emt 0:04:21]} Ke7 {[%emt 0:00:47]} 30. Rba3 {[%emt 0:00:49]} Rb8 {[%emt 0:00:37]} 31. Rc3 {[%emt 0:01:32]} (31. Bxa6 $6 Bxa6 32. Rxa6 Rxb4 $11) 31... Ra8 {[%emt 0:00:27]} 32. h4 {[%emt 0:00:55]} f6 {[%emt 0:00:31]} 33. Rca3 {[%emt 0:01:10]} Rb8 {[%emt 0:00:20]} 34. hxg5 {[%emt 0:02:24]} hxg5 {[%emt 0:00:16]} 35. Rc3 {[%emt 0:00:40]} (35. Bxa6 Bxa6 36. Rxa6 Rxb4 $16) 35... Ra8 {[%emt 0:00:09]} 36. Rc1 {[%emt 0:00:24]} Kf7 {[%emt 0:02:40]} (36... Rdd8 $16 37. Rh1 Rh8 38. Rxh8 Rxh8) 37. Rh1 $18 {[%emt 0:00:22]} Kg7 {[%emt 0:00:09] [#]} 38. f4 $1 {[%emt 0:00:26] Against e5} Rad8 {[%emt 0:04:32]} (38... gxf4+ {is a better defense.} 39. gxf4 c5 40. Rxc5 (40. bxc5 f5 $18) 40... f5 41. Rg1+ Kf6) 39. fxg5 {[%emt 0:00:24]} f5 {[%emt 0:00:04]} 40. Rh6 {[%emt 0:01:39]} ({Less strong is} 40. exf5 exf5 41. Re5 (41. Rxf5 Re7+ 42. Kf2 Rd2 $11) (41. Bxa6 Bxa6 42. Rxa6 Rd3+ 43. Kf4 R3d4+ 44. Kf3 Rd3+ 45. Kf4 R3d4+ 46. Kf3 Rd3+ 47. Kf4 $11) 41... c5 $16) (40. Bxa6 Bxa6 41. Rxa6 Kg6 $18) 40... c5 {[%emt 0:02:26]} 41. Rxc5 {[%emt 0:31:47]} Bxe4 {[%emt 0:06:18]} 42. Rxe6 {[%emt 0:00:00]} Bd5 {[%emt 0:02:24]} 43. Rxa6 {[%emt 0:00:00]} Re7+ {[%emt 0:02:39]} 44. Kf2 {[%emt 0:00:00]} Bf7 {[%emt 0:01:04]} 45. Rc2 {[%emt 0:00:00] Inhibits Rd2. White is clearly winning.} Rd4 {[%emt 0:00:38]} 46. b5 {[%emt 0:00:00][%cal Bb4b5,Bb5b6,Bb6c7][%mdl 32]} f4 {[%emt 0:00:41]} 47. b6 {[%emt 0:00:00]} fxg3+ {[%emt 0:02:59]} 48. Kxg3 {[%emt 0:00:00]} Rd5 {[%emt 0:01:51]} 49. Ra4 {[%emt 0:00:00] Threatens to win with Ra7.} Rb7 {[%emt 0:01:56]} 50. Rc7 {[%emt 0:00:56]} Rxg5+ {[%emt 0:03:50]} 51. Kf4 {[%emt 0:00:21]} Rxc7 {[%emt 0:00:28]} 52. bxc7 {[%emt 0:01:38]} Rc5 {[%emt 0:00:06]} 53. Ra7 {[%emt 0:00:04] Threatening mate with Ba6.} Kf6 {[%emt 0:00:57] [#]} 54. Bg4 $1 {[%emt 0:00:17]} Be6 {[%emt 0:01:25] Prevents c8Q.} 55. Ra6 {[%emt 0:00:15]} Rc4+ {[%emt 0:00:15]} 56. Ke3 {[%emt 0:00:14] Weighted Error Value: White=0.07 (flawless) /Black=0.25 (precise)} 1-0

[Event "26th Womens ECCC 2022"]
[Site "Mayrhofen"]
[Date "2022.10.04"]
[Round "2.4"]
[White "Cyfka, Karina"]
[Black "Paehtz, Elisabeth"]
[Result "0-1"]
[ECO "D11"]
[WhiteElo "2347"]
[BlackElo "2469"]
[Annotator "TA"]
[PlyCount "154"]
[EventDate "2022.10.03"]
[EventType "team-tourn"]
[EventCountry "AUT"]
[SourceTitle "playchess.com"]
[Source "ChessBase"]
[SourceQuality "1"]
[TimeControl "40/5400+30:1800+30"]

{[%evp 17,154,15,28,0,0,0,0,0,-14,0,0,-31,-25,-30,-24,-35,-27,-60,-7,-31,11,12,31,15,7,25,16,0,0,0,0,-13,17,-7,0,0,0,32,22,0,0,0,0,0,0,24,30,-24,0,-43,-23,-27,0,-26,-25,-30,0,0,18,0,35,35,102,67,60,51,48,42,82,75,71,14,51,24,102,111,110,112,113,0,-8,-72,-74,-69,-75,-110,-106,-101,-41,-148,-144,-208,-66,-79,-97,-160,-178,-218,-175,-227,-233,-216,-149,-317,-281,-278,-264,-308,-246,-271,-272,-258,-138,-231,-233,-456,-470,-539,-545,-1038,-1035,-1032,-1000,-997,-935,-29977,-29978,-29978,-1573,-29981,-29981,-29974,-2179,-29987,-29988,-29988,-29989,-29988,-29989]} 1. d4 {[%emt 0:00:04]} d5 {[%emt 0:00:03]} 2. c4 {[%emt 0:00:09]} c6 {[%emt 0:00:02]} 3. Nf3 {[%emt 0:01:17]} Nf6 {[%emt 0:00:08]} 4. e3 {[%emt 0:00:47]} a6 {[%emt 0:00:12]} 5. Nc3 {[%emt 0:03:10]} b5 {[%emt 0:00:09]} 6. b3 {[%emt 0:00:22]} Bg4 {[%emt 0:00:05]} 7. Be2 {[%emt 0:02:26]} e6 {[%emt 0:00:37]} 8. O-O {[%emt 0:03:11]} Nbd7 {[%emt 0:00:04]} 9. Bb2 {[%emt 0:04:20]} Bd6 {[%emt 0:00:32]} 10. Qc2 {[%emt 0:03:31] D15: Slav Defence: 4 Nc3 a6 and gambit lines after 4 Nc3 dxc4.} Qb8 {[%emt 0:03:38]} 11. h3 {[%emt 0:04:25]} Bf5 {[%emt 0:00:42]} 12. Qc1 {[%emt 0:04:53] The position is equal.} h6 {[%emt 0:03:09] [#]} 13. a4 $146 {[%emt 0:09:06][%cal Ra4b5]} ({Predecessor:} 13. Re1 O-O 14. Bf1 Ra7 15. a3 Re8 16. Qd2 Rb7 17. c5 Bc7 18. b4 e5 19. dxe5 Nxe5 {0-1 (58) Muller,T (2065)-Aparicio,A (2274) Villa Ballester 2010}) 13... b4 {[%emt 0:06:16]} 14. Na2 {[%emt 0:01:19]} O-O {[%emt 0:10:47]} 15. Qe1 {[%emt 0:06:41]} a5 {[%emt 0:02:25]} 16. Nc1 {[%emt 0:04:00]} Ne4 {[%emt 0:01:43]} 17. cxd5 {[%emt 0:01:28]} exd5 {[%emt 0:02:03]} (17... cxd5 $15 18. Bb5 Qb7) 18. Nd3 $11 {[%emt 0:02:00]} f6 {[%emt 0:10:08]} 19. Rc1 {[%emt 0:03:01]} Qb7 {[%emt 0:04:04]} 20. Qd1 {[%emt 0:03:20]} Rac8 {[%emt 0:02:02]} 21. Nh4 {[%emt 0:02:39]} Bh7 {[%emt 0:01:30]} 22. Bh5 {[%emt 0:04:11]} g5 {[%emt 0:02:10]} 23. Nf3 {[%emt 0:02:27]} Bb8 {[%emt 0:15:32]} 24. Bg4 {[%emt 0:03:30]} Rcd8 {[%emt 0:04:21]} 25. Bh5 {[%emt 0:03:36]} Qc7 {[%emt 0:02:16]} 26. Re1 {[%emt 0:00:46]} Qd6 {[%emt 0:03:12]} 27. Re2 {[%emt 0:03:24]} Bf5 {[%emt 0:04:34]} 28. Re1 {[%emt 0:02:13]} Rc8 {[%emt 0:01:17]} 29. Qe2 {[%emt 0:01:47]} Kh7 {[%emt 0:03:23]} 30. Red1 {[%emt 0:00:58]} Bg6 {[%emt 0:00:43]} 31. Bxg6+ {[%emt 0:00:36]} Kxg6 {[%emt 0:00:04]} 32. g3 {[%emt 0:00:54]} (32. Rc2 $142) 32... Rfe8 {[%emt 0:00:48]} 33. Re1 {[%emt 0:02:13]} Kg7 {[%emt 0:00:50]} 34. Rc2 {[%emt 0:01:31]} Qe6 {[%emt 0:04:06]} 35. Qf1 {[%emt 0:01:52]} Qf5 {[%emt 0:00:23]} 36. Kg2 {[%emt 0:00:31]} Bd6 {[%emt 0:03:50]} 37. Qe2 {[%emt 0:01:06]} Nb8 {[%emt 0:00:54]} 38. Nh2 {[%emt 0:01:35]} Qg6 {[%emt 0:01:44]} (38... h5 $5) 39. Nf1 {[%emt 0:01:48]} Bf8 {[%emt 0:02:35]} ({Black should play} 39... f5 $14) 40. Rec1 {[%emt 0:05:36]} h5 {[%emt 0:00:47]} 41. f3 {[%emt 0:36:13]} Nd6 {[%emt 0:30:04]} 42. g4 {[%emt 0:00:49]} Rc7 {[%emt 0:07:04]} 43. Rc5 {[%emt 0:00:00]} Ra7 {[%emt 0:00:00]} 44. Nf2 {[%emt 0:00:00]} (44. Ng3 $16) 44... h4 {[%emt 0:00:00]} 45. Qd3 {[%emt 0:00:00]} Qf7 {[%emt 0:00:00]} (45... Qxd3 $11 46. Nxd3 Nf7) 46. e4 $1 $16 {[%emt 0:00:00]} Nb7 {[%emt 0:00:00][%cal Bd6b7,Bb7d8,Bd8e6][%mdl 32]} 47. R5c2 {[%emt 0:00:00]} Nd8 {[%emt 0:00:00]} 48. Qe3 {[%emt 0:00:00]} (48. Kg1 $16) 48... Kg8 $11 {[%emt 0:00:00]} 49. Nd2 {[%emt 0:00:00]} (49. Kh1 $11 {keeps the balance.}) 49... Ne6 $17 {[%emt 0:00:00]} 50. Nd3 {[%emt 0:00:00]} Bd6 {[%emt 0:00:00]} 51. e5 {[%emt 0:00:00]} fxe5 {[%emt 0:00:00]} 52. dxe5 {[%emt 0:00:00] [#]} Bf8 {[%emt 0:00:00]} (52... Rae7 $1 $17 {[%cal Ob8d7]} 53. Re1 (53. exd6 $2 Nf4+ 54. Qxf4 Re2+ 55. Kg1 gxf4 $19) (53. Nf1 Bc7) 53... Bc7) 53. Rf1 {[%emt 0:02:06]} (53. f4 $15 gxf4 54. Qe2 (54. Qf2 Qh7 $15)) 53... Qh7 {[%emt 0:00:00][%cal Oh7d3]} 54. Kh2 {[%emt 0:02:52]} (54. f4 $17 Nxf4+ 55. Rxf4 gxf4 56. Qe2) 54... Rf7 {[%emt 0:00:00]} ({Better is} 54... Nf4 $1 $19 {[%cal Rf4d3]} 55. Ne4 dxe4 56. Nxf4 gxf4 57. Qxf4 Bg7) 55. Rcc1 {[%emt 0:00:48]} c5 {[%emt 0:00:00]} 56. Rce1 {[%emt 0:00:44]} ({White should try} 56. Qe2) 56... Nd7 {[%emt 0:00:00]} 57. Rf2 {[%emt 0:00:55]} Bh6 {[%emt 0:00:00]} 58. Rff1 {[%emt 0:00:28]} (58. Rd1 {is a better defense.}) 58... Qg6 $19 {[%emt 0:00:00]} 59. Rc1 {[%emt 0:00:24]} Bf8 {[%emt 0:01:05]} 60. Rf2 $2 {[%emt 0:00:27] This costs White the game.} (60. Qe2 $17) 60... Nf4 {[%emt 0:00:43]} 61. Nxf4 {[%emt 0:01:10]} Rxf4 {[%emt 0:00:17]} 62. Qe1 {[%emt 0:00:50]} Re6 {[%emt 0:00:32]} 63. Re2 {[%emt 0:00:20]} Bg7 {[%emt 0:00:36]} 64. Kg2 {[%emt 0:00:12]} Kh7 {[%emt 0:00:57]} (64... Rf8 $19 {And now ...Rfe8 would win.} 65. Re3 Qf7) 65. Ba1 {[%emt 0:00:50]} (65. Qf2 $17) 65... d4 {[%emt 0:00:25]} 66. Nc4 $2 {[%emt 0:00:30]} (66. Qf1) 66... Qd3 $1 {[%emt 0:00:18][%csl LRb3,LRf3]} 67. Qf1 {[%emt 0:00:42]} Qxb3 {[%emt 0:00:43]} 68. Re4 {[%emt 0:00:20]} Rxe4 {[%emt 0:00:57]} 69. fxe4 {[%emt 0:00:04]} Qg3+ {[%emt 0:00:07]} 70. Kh1 {[%emt 0:00:03]} Nxe5 {[%emt 0:00:30]} 71. Qf5+ {[%emt 0:00:36]} Rg6 {[%emt 0:00:47]} 72. Nxe5 {[%emt 0:00:37]} Bxe5 {[%emt 0:01:36]} (72... Qxh3+ $142 73. Kg1 Qe3+ 74. Kf1 Qxc1+ 75. Kf2 Bxe5 76. Qxe5 h3 77. Qe7+ Rg7 78. Qf6 Qd2+ 79. Kf1 Qg2+ 80. Ke1 Qxe4+ 81. Kd2 h2 82. Qf5+ Qxf5 83. gxf5 h1=Q 84. f6 Qg2+ 85. Kd3 Qf1+ 86. Kc2 d3+ 87. Kb3 d2 88. Be5 d1=Q+ 89. Kb2 Qg2#) 73. Qf7+ {[%emt 0:00:17]} Kh6 {[%emt 0:01:38][%csl Ge5][%cal Rg3h2]} 74. Qf8+ {[%emt 0:00:16]} Bg7 {[%emt 0:00:30]} (74... Rg7 $142 75. Rc2 Qe1+ 76. Kg2 Qxe4+ 77. Qf3 Qxc2+ 78. Qf2 Qb3 79. Qf3 Qa2+ 80. Qf2 Qxa1 81. Qf8 Qb2+ 82. Kf3 d3 83. Qh8+ Kg6 84. Qh5+ Kf6 85. Qh6+ Ke7 86. Qxg7+ Bxg7 87. Ke4 Qd4+ 88. Kf3 d2 89. Kg2 d1=Q 90. Kh2 Q4g1#) 75. Qxc5 {[%emt 0:01:12]} Qxh3+ {[%emt 0:00:12] Black mates.} 76. Kg1 {[%emt 0:00:02]} Qxg4+ {[%emt 0:00:06]} 77. Kh2 {[%emt 0:00:08]} Qxe4 {[%emt 0:00:56] Weighted Error Value: White=0.26 (precise) /Black=0.17 (very precise)} 0-1

[Event "26th Womens ECCC 2022"]
[Site "Mayrhofen"]
[Date "2022.10.04"]
[Round "2.5"]
[White "Salimova, Nurgyul"]
[Black "Bulmaga, Irina"]
[Result "0-1"]
[ECO "A46"]
[WhiteElo "2415"]
[BlackElo "2417"]
[Annotator "TA"]
[PlyCount "92"]
[EventDate "2022.10.03"]
[EventType "team-tourn"]
[EventCountry "AUT"]
[SourceTitle "playchess.com"]
[Source "ChessBase"]
[SourceQuality "1"]
[TimeControl "40/5400+30:1800+30"]

{[%evp 9,92,0,22,21,25,23,11,9,25,31,33,26,64,57,92,68,88,100,95,64,89,102,95,70,153,148,151,150,150,148,144,127,138,140,137,115,148,142,150,153,160,151,172,162,162,106,123,83,68,53,118,0,0,0,0,-66,-67,-63,-43,-39,-49,-58,-63,-29,-36,-39,-37,-62,-64,-78,-78,-132,-78,-252,-259,-533,-530,-525,-518,-502,-492,-460,-411,-518,-436]} 1. d4 {[%emt 0:00:03]} Nf6 {[%emt 0:00:08]} 2. Nf3 {[%emt 0:00:05]} e6 {[%emt 0:00:08]} 3. Bg5 {[%emt 0:00:09]} c5 {[%emt 0:00:46]} 4. e3 {[%emt 0:00:37]} Nc6 {[%emt 0:01:08]} 5. Nbd2 {[%emt 0:05:27]} h6 {[%emt 0:05:26]} 6. Bxf6 {[%emt 0:07:04] A46: 1 d4 Nf6 2 Nf3 e6: Torre, London and Colle Systems.} gxf6 {[%emt 0:06:03]} 7. c3 {[%emt 0:03:14]} d5 {[%emt 0:02:26]} 8. Bb5 {[%emt 0:07:01] [#] The position is equal.} a6 $146 {[%emt 0:23:35]} ({Predecessor:} 8... Bd7 9. Qe2 a6 10. Bd3 c4 11. Bc2 f5 12. g3 Bd6 13. Nh4 Qc7 14. Qh5 Ke7 {1-0 (48) Winterton,K-Marshall,P North Bay 1996}) 9. Bxc6+ {[%emt 0:00:25]} bxc6 {[%emt 0:00:03]} 10. O-O {[%emt 0:03:55]} Rg8 {[%emt 0:09:39][%cal Oe6e5]} 11. Re1 {[%emt 0:06:47]} f5 {[%emt 0:17:51]} 12. Qc2 {[%emt 0:05:35]} (12. c4 {looks sharper.} Rb8 13. Qc2 cxd4 14. exd4 Bd6 15. Qxf5 Rxb2 16. g3) 12... c4 {[%emt 0:09:12]} 13. b3 {[%emt 0:04:43]} cxb3 {[%emt 0:00:07]} 14. Nxb3 {[%emt 0:10:27]} f6 {[%emt 0:10:33]} 15. c4 {[%emt 0:12:40]} Ra7 {[%emt 0:00:44]} 16. Rab1 {[%emt 0:08:12]} Rag7 {[%emt 0:01:14]} (16... dxc4 $14 17. Qxc4 Qd5 18. Qxd5 cxd5) 17. g3 $16 {[%emt 0:00:23]} Bd6 {[%emt 0:03:24]} 18. cxd5 {[%emt 0:01:36]} cxd5 {[%emt 0:00:11]} 19. Rec1 {[%emt 0:02:52]} Rc7 {[%emt 0:01:40]} 20. Qe2 {[%emt 0:00:10]} Ba3 {[%emt 0:03:33]} 21. Rxc7 {[%emt 0:00:36]} Qxc7 {[%emt 0:00:04]} 22. Nh4 {[%emt 0:04:27]} Rg5 {[%emt 0:01:54]} 23. Nc5 {[%emt 0:05:42]} Bxc5 {[%emt 0:00:24]} 24. Rc1 {[%emt 0:01:07][%mdl 64] [#] Pin} Bd7 {[%emt 0:00:58]} 25. Rxc5 {[%emt 0:02:13]} Qb7 {[%emt 0:01:00]} 26. Rc1 {[%emt 0:01:23] Inhibits Qb1.} Bb5 {[%emt 0:00:25]} 27. Qb2 {[%emt 0:00:51]} ({White should try} 27. Qd1 $18) 27... Rg7 {[%emt 0:00:27]} 28. Rb1 {[%emt 0:01:35][%cal Oa2a4]} Qc8 {[%emt 0:00:26]} 29. Qd2 $1 {[%emt 0:03:46]} Rc7 {[%emt 0:00:44] [#]} (29... Rb7 $14) 30. Qd1 {[%emt 0:00:11]} ({White has to play} 30. e4 $1 $16 {[%cal Re4f5]} fxe4 31. Qxh6) 30... Rc2 $11 {[%emt 0:00:24]} 31. Qh5+ {[%emt 0:02:06]} Ke7 {[%emt 0:00:02][%cal Be8e7,Be7d6,Bd6c6][%mdl 32]} 32. Qd1 {[%emt 0:00:35] Inhibits Rc1.} ({Wrong is} 32. Qxh6 $2 Rc1+ 33. Kg2 Bf1+ 34. Kf3 Be2+ 35. Kg2 Bf1+ 36. Kf3 Be2+ 37. Kg2 Rxb1 $19) (32. h3 $1 $11) 32... Qc3 $1 $15 {[%emt 0:00:42] ...Be2 is the strong threat. Black has more active pieces.} 33. Ng6+ {[%emt 0:00:19]} Kd6 {[%emt 0:00:10]} 34. Nf4 {[%emt 0:00:37][%cal Oa2a3] Prevents Be2.} Rxa2 {[%emt 0:00:58]} 35. g4 {[%emt 0:00:30]} Qc2 $36 {[%emt 0:00:27][%mdl 2048] White is under pressure. Dancing on a razor blade.} 36. Qxc2 {[%emt 0:00:29]} Rxc2 {[%emt 0:00:03]} 37. gxf5 {[%emt 0:00:15]} exf5 {[%emt 0:00:35][%mdl 4096] Endgame KRB-KRN} 38. Kg2 {[%emt 0:00:25]} Kc6 {[%emt 0:00:15]} 39. Kf3 {[%emt 0:00:21]} a5 {[%emt 0:00:16]} 40. Ne6 {[%emt 0:00:46]} (40. Ra1 $142 a4 41. Ne6) 40... a4 {[%emt 0:00:38]} ({Black should play} 40... Bc4 {White must now prevent ...a4.} 41. Nd8+ Kd7) 41. Nd8+ $2 {[%emt 0:04:39]} (41. Ra1 $17 {is the only way for White.}) 41... Kb6 $19 {[%emt 0:00:45] Threatens to win with ...a3.} 42. Nb7 $2 {[%emt 0:00:17]} (42. Ra1 {only move.}) 42... a3 {[%emt 0:02:35][%cal Ba4a3,Ba3a2][%mdl 32] Hoping for ...a2.} ({Don't blunder} 42... Kxb7 $2 43. Rxb5+ Ka6 44. Rxd5 $19) 43. Nd6 {[%emt 0:00:23]} Rb2 {[%emt 0:03:10]} 44. Ra1 {[%emt 0:00:04]} a2 {[%emt 0:00:10]} 45. Nxf5 {[%emt 0:00:59]} Bc4 {[%emt 0:00:33]} 46. Nd6 {[%emt 0:00:04]} Bb3 {[%emt 0:00:16] What a bad dream for White.  Weighted Error Value: White=0.27 (precise) /Black=0.13 (very precise)} 0-1

[Event "26th Womens ECCC 2022"]
[Site "Mayrhofen"]
[Date "2022.10.04"]
[Round "2.6"]
[White "Saduakassova, Dinara"]
[Black "Roebers, Eline"]
[Result "1/2-1/2"]
[ECO "A13"]
[WhiteElo "2434"]
[BlackElo "2352"]
[Annotator "TA"]
[PlyCount "133"]
[EventDate "2022.10.03"]
[EventType "team-tourn"]
[EventCountry "AUT"]
[SourceTitle "playchess.com"]
[Source "ChessBase"]
[SourceQuality "1"]
[TimeControl "40/5400+30:1800+30"]

{[%evp 9,133,14,18,18,35,39,35,32,40,19,45,29,36,36,31,33,56,0,0,0,21,0,0,0,0,0,14,-14,0,0,0,0,0,0,0,0,0,0,0,0,0,-25,0,0,12,7,105,114,108,111,126,107,97,98,81,89,102,54,62,56,214,201,193,118,660,658,615,639,614,337,758,749,662,20,20,15,15,15,15,8,8,8,8,8,8,8,8,8,8,8,8,8,8,8,8,8,8,8,8,8,8,8,8,8,8,8,8,8,8,8,8,8,8,0,0,0,8,0,0,0,0,0,0,0,0,0]} 1. c4 {[%emt 0:00:20]} e6 {[%emt 0:02:51]} 2. Nf3 {[%emt 0:03:36]} d5 {[%emt 0:00:06]} 3. d4 {[%emt 0:03:50]} c6 {[%emt 0:03:10]} 4. Nbd2 {[%emt 0:06:39]} f5 {[%emt 0:04:48]} 5. g3 {[%emt 0:01:08]} Bd6 {[%emt 0:03:12]} 6. Bg2 {[%emt 0:00:05] D30: Queen's Gambit Declined: Systems without Nc3.} Nh6 {[%emt 0:04:25]} 7. Ne5 {[%emt 0:02:07]} O-O {[%emt 0:03:13] [#]} 8. Ndf3 $146 {[%emt 0:01:36] White is slightly better.} ({Predecessor:} 8. O-O Nd7 9. Nd3 Qf6 10. Nf3 Nf7 11. Bf4 dxc4 12. Bxd6 Nxd6 13. Nde5 Nb6 14. Rc1 {1-0 (73) Bryakin,M (2434)-Popchev,M (2262) Novi Sad 2021}) 8... Nf7 {[%emt 0:04:11]} 9. Bf4 {[%emt 0:10:06]} Bb4+ {[%emt 0:15:41]} 10. Bd2 {[%emt 0:02:17]} Bd6 {[%emt 0:00:04]} 11. Nxf7 {[%emt 0:03:04]} Rxf7 {[%emt 0:00:05]} 12. O-O {[%emt 0:00:23]} b6 {[%emt 0:05:21]} 13. Ne5 {[%emt 0:04:17]} ({Better is} 13. b4 $14) 13... Bxe5 $11 {[%emt 0:06:56]} 14. dxe5 {[%emt 0:00:10]} Nd7 {[%emt 0:01:47]} 15. cxd5 {[%emt 0:08:05]} cxd5 {[%emt 0:00:05]} 16. Bc3 {[%emt 0:01:13][%cal Og2d5]} Ba6 {[%emt 0:02:28]} 17. a4 {[%emt 0:07:23]} Qc7 {[%emt 0:03:48]} 18. Qd2 {[%emt 0:05:10]} Qc4 {[%emt 0:04:49]} ({Much less strong is} 18... Nxe5 19. Qe3 Nd7 20. Qxe6 $16) 19. Bd4 {[%emt 0:12:11]} Qxe2 {[%emt 0:07:18]} 20. Qxe2 {[%emt 0:02:17]} Bxe2 {[%emt 0:00:05]} 21. Rfc1 {[%emt 0:00:06] Prevents Nc5.} Nc5 {[%emt 0:00:07]} 22. Ra3 {[%emt 0:04:41] Against Nb3} Rd8 {[%emt 0:11:08]} 23. Bf1 {[%emt 0:05:03]} Bxf1 {[%emt 0:01:38]} 24. Kxf1 {[%emt 0:00:03]} f4 {[%emt 0:00:07]} 25. Kg2 {[%emt 0:07:25]} Rdf8 {[%emt 0:08:06]} (25... f3+ $5 26. Rxf3 Rxf3 27. Kxf3 Nb3 $15) 26. f3 {[%emt 0:00:47]} h5 {[%emt 0:01:36]} 27. a5 {[%emt 0:02:36]} Rc7 {[%emt 0:06:20]} (27... Nd7 $11 {keeps the balance.}) 28. axb6 $1 $16 {[%emt 0:04:17]} ({Much weaker is} 28. b4 $6 Na6 29. Rxc7 Nxc7 $11) 28... axb6 {[%emt 0:00:01]} 29. b4 {[%emt 0:00:23]} Na6 {[%emt 0:00:43]} 30. Rxc7 {[%emt 0:00:04] White is more active.} Nxc7 {[%emt 0:00:04]} 31. Bxb6 {[%emt 0:00:05][%mdl 4096] Endgame KRB-KRN} Nb5 {[%emt 0:00:30]} 32. Ra5 {[%emt 0:00:50]} Nc3 {[%emt 0:00:04]} 33. Bc5 {[%emt 0:01:22]} ({White should play} 33. Bd4 $1 $16 {[%cal Rd4c3]} Ne2 34. Bc5) 33... Rc8 $1 $14 {[%emt 0:01:28]} 34. gxf4 {[%emt 0:01:10]} Kf7 $2 {[%emt 0:00:37] [#]} (34... Ne2 $1 $14) 35. Kf2 $1 $18 {[%emt 0:01:13][%cal Of4f5]} d4 {[%emt 0:00:27] [#]} 36. Bxd4 {[%emt 0:00:28]} (36. f5 $1 $18 {Ra7+ is the strong threat.} exf5 37. Bxd4) 36... Rc4 $2 {[%emt 0:00:03][%mdl 8192]} (36... Nd5 $16) 37. Bxc3 {[%emt 0:01:08]} Rxc3 {[%emt 0:00:03] KR-KR} 38. Kg3 {[%emt 0:00:52]} Kg6 {[%emt 0:00:21]} 39. Ra7 {[%emt 0:00:24]} Rb3 $2 {[%emt 0:01:35]} (39... Rc1 40. h4 Rg1+ 41. Kh2 Rf1) 40. Rb7 {[%emt 0:00:16]} Rb2 {[%emt 0:00:20]} 41. Re7 $2 {[%emt 0:07:00]} (41. b5 $18 Kh6 42. Rb6) 41... Rxb4 $11 {[%emt 0:09:27] The position is equal.} 42. Rxe6+ {[%emt 0:00:09]} Kf5 {[%emt 0:00:10]} 43. Re7 {[%emt 0:05:17] Black must now prevent Rf7+.} h4+ $1 {[%emt 0:02:52]} 44. Kg2 {[%emt 0:07:12] aiming for Rf7+.} Kxf4 {[%emt 0:09:42]} 45. e6 {[%emt 0:01:36] Strongly threatening Rf7+.} Kf5 {[%emt 0:03:57]} 46. Rxg7 {[%emt 0:02:11] And now e7 would win.} (46. Re8 {keeps more tension.} Kf6 47. Kh3 g5 48. e7) 46... Kxe6 {[%emt 0:01:15]} 47. Rg4 {[%emt 0:01:37]} (47. Kh3 $5 {[%cal Rg7g4]}) 47... Rb2+ {[%emt 0:00:44]} 48. Kh3 {[%emt 0:00:09]} Rf2 {[%emt 0:00:44]} 49. Rf4 {[%emt 0:00:07]} Ke5 {[%emt 0:01:04]} 50. Rf8 {[%emt 0:00:12]} Ke6 {[%emt 0:00:17]} 51. Kxh4 {[%emt 0:01:35] Hoping for Kg3.} Rxh2+ {[%emt 0:00:16]} 52. Kg5 {[%emt 0:00:03]} Ke7 {[%emt 0:01:36]} 53. Ra8 {[%emt 0:00:25]} Rg2+ {[%emt 0:01:25]} 54. Kf5 {[%emt 0:00:15]} Rb2 {[%emt 0:00:04]} 55. f4 {[%emt 0:00:16]} Rb6 {[%emt 0:01:09]} 56. Kg5 {[%emt 0:00:11]} Kf7 {[%emt 0:00:09]} 57. f5 {[%emt 0:00:18]} Rc6 {[%emt 0:00:23]} 58. Ra7+ {[%emt 0:02:50]} Kf8 {[%emt 0:00:13]} 59. Kf4 {[%emt 0:00:07]} Rb6 {[%emt 0:00:42]} 60. Ke5 {[%emt 0:00:07]} Rb5+ {[%emt 0:00:37]} 61. Kf6 {[%emt 0:00:04]} Rb6+ {[%emt 0:00:14]} 62. Kg5 {[%emt 0:00:06]} Rc6 {[%emt 0:00:04]} 63. f6 {[%emt 0:00:32] White threatens Kg6 and mate.} Rc1 {[%emt 0:00:04]} 64. Kg6 {[%emt 0:00:06] Threatening mate with Ra8+.} Rg1+ {[%emt 0:00:04]} 65. Kf5 {[%emt 0:00:02]} Rf1+ {[%emt 0:00:04]} 66. Kg6 {[%emt 0:00:02][%cal Ra7a8]} Rg1+ {[%emt 0:00:05]} 67. Kf5 {[%emt 0:00:03] Blacks defense is rewarded with a draw.  Weighted Error Value: White=0.24 (precise) /Black=0.27 (precise)} 1/2-1/2